lending/lending_fUSD_20250819
["ID","MTS","AMOUNT","RATE_DAILY","PERIOD"]
[380284404,1755632411319,-2214.03682589,0.00036,120]
[380284405,1755632411415,-1000.0,0.00036,120]
[380284406,1755632411512,-850.0,0.00036,120]
[380284407,1755632411609,-288.8017099,0.00036,120]
[380284408,1755632411706,-500.0,0.00036,120]
[380284409,1755632411800,-5970.30648206,0.00036,120]
[380284410,1755632411891,-2142.41,0.00036164,120]
[380284411,1755632411987,-3982.02,0.00036164,120]
[380284412,1755632412082,-684.24,0.00036164,120]
[380284413,1755632412182,-585.62,0.00036164,120]
[380284414,1755632412280,-157.05778575,0.00036351,60]
[380284415,1755632412741,-2142.47780252,0.00036438,120]
[380284416,1755632412838,-3982.1671051,0.00036438,120]
[380284417,1755632412934,-684.4592323,0.00036438,120]
[380284418,1755632413049,-1000.08565094,0.000365,120]
[380284419,1755632413146,-1558.19455086,0.000365,120]
[380284420,1755632413243,-534.48922267,0.000367,120]
[380284421,1755632413340,-585.62,0.00036712,120]
[380284422,1755632413436,-500.0,0.00036823,120]
[380284423,1755632413531,-1745.23,0.00036878,60]
[380284424,1755632413625,-442.0,0.00036886,90]
[380284425,1755632413718,-793.80543891,0.000369,120]
[380284426,1755632413809,-1710.64653927,0.000369,120]
[380284427,1755632413903,-1745.23,0.00036978,60]
[380284428,1755632413997,-500.0,0.00036986,120]
[380284429,1755632414090,-10000.0,0.00037,120]
[380284430,1755632414182,-50000.0,0.00037,90]
[380284431,1755632414275,-50000.0,0.00037,90]
[380284432,1755632414374,-100000.0,0.00037,90]
[380284433,1755632414467,-800.0,0.00037,120]
[380284434,1755632414564,-13268.0,0.00037,120]
[380284435,1755632414658,-1745.23,0.00037078,60]
[380284436,1755632414753,-1745.23,0.00037178,60]
[380284437,1755632414876,-923.29850053,0.000372,120]
[380284438,1755632414981,-923.2985005,0.000372,120]
[380284439,1755632415095,-923.2985005,0.000372,120]
[380284440,1755632415210,-923.2985005,0.000372,120]
[380284441,1755632415306,-923.2985005,0.000372,120]
[380284442,1755632415405,-585.62,0.0003726,120]
[380284443,1755632415502,-1745.23,0.00037278,60]
[380284444,1755632415597,-1745.23,0.00037378,60]
[380284445,1755632415692,-1745.23,0.00037478,60]
[380284446,1755632415788,-1745.23,0.00037578,60]
[380284447,1755632415881,-500.0,0.00037671,120]
[380284448,1755632415980,-600.0,0.00037671,120]
[380284449,1755632416076,-1745.23,0.00037678,60]
[380284450,1755632416173,-1745.23,0.00037778,60]
[380284451,1755632416266,-507.99,0.00037808,60]
[380284452,1755632416369,-585.62,0.00037808,120]
[380284453,1755632416464,-508.0,0.00037839,80]
[380284454,1755632416558,-508.0,0.00037869,100]
[380284455,1755632416649,-186.55364566,0.0003787,120]
[380284456,1755632416748,-1745.23,0.00037878,60]
[380284457,1755632416842,-442.0,0.00037886,90]
[380284458,1755632416945,-500.0,0.00037892,120]
[380284459,1755632417054,-508.0,0.000379,120]
[380284460,1755632417157,-1745.23,0.00037978,60]
[380284461,1755632417254,-561.32855342,0.00037999,120]
[380284462,1755632417351,-165.52119616,0.00038,120]
[380284463,1755632417446,-15000.0,0.00038,120]
[380284464,1755632417544,-3640.585,0.00038,120]
[380284465,1755632417640,-900.0,0.00038,120]
[380284466,1755632417737,-4251.52424438,0.00038,120]
[380284467,1755632417837,-676.65101043,0.00038,120]
[380284468,1755632417938,-192.41,0.00038,120]
[380284469,1755632418036,-3090.03835297,0.00038,120]
[380284470,1755632418136,-152.0,0.00038,120]
[380284471,1755632418237,-163.0,0.00038,120]
[380284472,1755632418341,-1745.23,0.00038078,60]
[380284473,1755632418436,-193.3709661,0.000381,120]
[380284474,1755632418542,-1745.23,0.00038178,60]
[380284475,1755632418646,-1745.23,0.00038278,60]
[380284476,1755632418741,-585.62,0.00038356,120]
[380284477,1755632418846,-1745.23,0.00038378,120]
[380284478,1755632418951,-1745.23,0.00038478,120]
[380284479,1755632419047,-400.0,0.000385,120]
[380284480,1755632419149,-500.0,0.000385,120]
[380284481,1755632419245,-80250.70745908,0.000385,120]
[380284482,1755632419352,-1745.23,0.00038578,120]
[380284483,1755632419464,-1584.0,0.000386,60]
[380284484,1755632419559,-1347.48,0.000386,60]
[380284485,1755632419659,-2000.0,0.000386,60]
[380284486,1755632419752,-2005.4,0.000386,60]
[380284487,1755632419846,-2000.0,0.000386,60]
[380284488,1755632419944,-2000.0,0.000386,60]
[380284489,1755632420042,-1745.23,0.00038678,120]
[380284490,1755632420150,-4000.0,0.00038688,60]
[380284491,1755632420243,-1840.74932645,0.0003869,120]
[380284492,1755632420340,-34345.46,0.0003871,80]
[380284493,1755632420435,-1745.23,0.00038778,120]
[380284494,1755632420534,-1745.23,0.00038878,120]
[380284495,1755632420634,-1000.0,0.0003888,120]
[380284496,1755632420729,-4620.31170383,0.000389,120]
[380284497,1755632420822,-152.0,0.000389,120]
[380284498,1755632420916,-163.0,0.000389,120]
[380284499,1755632421013,-585.62,0.00038904,120]
[380284500,1755632421107,-1444.0,0.00038904,90]
[380284501,1755632421214,-500.0,0.00038961,120]
[380284502,1755632421315,-1745.23,0.00038978,120]
[380284503,1755632421413,-52390.84865887,0.0003898,60]
[380284504,1755632421507,-1000.0,0.00038999,120]
[380284505,1755632421606,-921.2760816,0.00039,120]
[380284506,1755632421706,-1472.18041536,0.00039,120]
[380284507,1755632421804,-287.0,0.00039,120]
[380284508,1755632421898,-3000.0,0.00039,90]
[380284509,1755632421992,-3184.81,0.00039,120]
[380284510,1755632422088,-2335.1341238,0.00039,120]
[380284511,1755632422182,-1483.64480808,0.00039,120]
[380284512,1755632422277,-760.62187071,0.00039,120]
[380284513,1755632422371,-800.0,0.00039,120]
[380284514,1755632422472,-6843.7152755,0.00039,120]
[380284515,1755632422568,-13268.0,0.00039,120]
[380284516,1755632422660,-200000.0,0.00039,90]
[380284517,1755632422754,-200000.0,0.00039,60]
[380284518,1755632422846,-493.93293876,0.00039041,120]
[380284519,1755632422940,-1745.23,0.00039078,120]
[380284520,1755632423029,-157.05778575,0.00039147,60]
[380284521,1755632423125,-1745.23,0.00039178,120]
[380284522,1755632423219,-1745.23,0.00039278,120]
[380284523,1755632423314,-1745.23,0.00039378,120]
[380284524,1755632423409,-585.62,0.00039452,120]
[380284525,1755632423505,-1745.23,0.00039478,120]
[380284526,1755632423597,-3000.0,0.000395,120]
[380284527,1755632423687,-1715.26227669,0.000395,120]
[380284528,1755632423779,-100907.128575,0.000395,120]
[380284529,1755632424308,-1000.0,0.000395,120]
[380284530,1755632424405,-509.0,0.0003952,90]
[380284531,1755632424503,-1745.23,0.00039578,120]
[380284532,1755632424597,-1098.93,0.0003958,120]
[380284533,1755632424693,-1745.23,0.00039678,120]
[380284534,1755632424786,-6395.8929619,0.000397,120]
[380284535,1755632424881,-1745.23,0.00039778,120]
[380284536,1755632424975,-10541.93,0.000398,120]
[380284537,1755632425072,-2099.82986623,0.000398,120]
[380284538,1755632425166,-1730583.93341464,0.000398,120]
[380284539,1755632425262,-142287.04,0.000398,120]
[380284540,1755632425358,-152.0,0.000398,120]
[380284541,1755632425455,-163.0,0.000398,120]
[380284542,1755632425551,-200000.0,0.000398,120]
[380284543,1755632425646,-1745.23,0.00039878,120]
[380284544,1755632425745,-528.0,0.000399,90]
[380284545,1755632425839,-711.38334575,0.000399,120]
[380284546,1755632425938,-166.63393348,0.000399,120]
[380284547,1755632426033,-166.63393348,0.000399,120]
[380284548,1755632426128,-166.63393348,0.000399,120]
[380284549,1755632426222,-166.63393348,0.000399,120]
[380284550,1755632426319,-166.63393348,0.000399,120]
[380284551,1755632426420,-166.63393348,0.000399,120]
[380284552,1755632426516,-166.63393348,0.000399,120]
[380284553,1755632426612,-1745.23,0.00039978,120]
[380284554,1755632426709,-5009.93,0.0004,120]
[380284555,1755632426803,-2578.56730027,0.0004,90]
[380284556,1755632426898,-873.48774061,0.0004,120]
[380284557,1755632426995,-511.07098762,0.0004,120]
[380284558,1755632427088,-260.37258301,0.0004,120]
[380284559,1755632427184,-921.94301074,0.0004,120]
[380284560,1755632427282,-20000.0,0.0004,120]
[380284561,1755632427382,-1500.0,0.0004,120]
[380284562,1755632427477,-1296.55049422,0.0004,120]
[380284563,1755632427573,-700.0,0.0004,120]
[380284564,1755632427668,-1000.0,0.0004,120]
[380284565,1755632427761,-3000.0,0.0004,120]
[380284566,1755632427882,-500000.0,0.0004,60]
[380284567,1755632427983,-50000.0,0.0004,120]
[380284568,1755632428077,-200.0,0.0004,120]
[380284569,1755632428172,-1000.0,0.0004,120]
[380284570,1755632428270,-150.0,0.0004,120]
[380284571,1755632428367,-200.0,0.0004,120]
[380284572,1755632428461,-1000.0,0.0004,120]
[380284573,1755632428559,-501.5,0.0004,120]
[380284574,1755632428654,-3006.3717,0.0004,120]
[380284575,1755632428750,-288.0964,0.0004,120]
[380284576,1755632428845,-802.33925164,0.0004,120]
[380284577,1755632428939,-10000.0,0.0004,120]
[380284578,1755632429034,-1000.0,0.0004,120]
[380284579,1755632429129,-11128.64,0.0004,120]
[380284580,1755632429223,-8830.0819624,0.0004,120]
[380284581,1755632429320,-1698.49847765,0.0004,120]
[380284582,1755632429416,-4316.93684607,0.0004,120]
[380284583,1755632429514,-3566.24074663,0.0004,120]
[380284584,1755632429609,-439.20778892,0.0004,120]
[380284585,1755632429702,-14337.0,0.0004,120]
[380284586,1755632429802,-30000.0,0.0004,60]
[380284587,1755632429897,-271238.11429637,0.0004,120]
[380284589,1755632475285,-734.4,0.00030136,120]
[380284590,1755632475419,-2553.46,0.00032876,120]
[380284591,1755632475518,-2553.46,0.00032876,120]
[380284592,1755632475611,-2553.46,0.00032876,120]
[380284593,1755632475701,-2553.46,0.00032876,120]
[380284594,1755632475789,-2553.46,0.00032876,120]
[380284595,1755632475882,-2553.46,0.00032876,120]
[380284596,1755632475977,-2553.46,0.00032876,120]
[380284597,1755632476071,-2553.46,0.00032876,120]
[380284598,1755632476167,-2553.46,0.00032876,120]
[380284599,1755632476268,-2553.46,0.00032876,120]
[380284600,1755632476361,-2553.46,0.00032876,120]
[380284601,1755632476463,-2553.46,0.00032876,120]
[380284602,1755632476558,-2553.46,0.00032876,120]
[380284603,1755632476652,-2553.46,0.00032876,120]
[380284604,1755632476744,-2553.46,0.00032876,120]
[380284605,1755632476837,-2553.46,0.00032876,120]
[380284606,1755632476928,-2553.46,0.00032876,120]
[380284607,1755632477021,-2553.46,0.00032876,120]
[380284608,1755632477111,-2553.46,0.00032876,120]
[380284609,1755632477205,-2553.46,0.00032876,120]
[380284610,1755632477300,-2553.46,0.00032876,120]
[380284611,1755632477396,-2553.46,0.00032876,120]
[380284612,1755632477492,-2553.46,0.00032876,120]
[380284613,1755632477583,-2553.52168275,0.00032876,120]
[380284614,1755632477679,-200.0,0.00033166,120]
[380284615,1755632477772,-150.0,0.00033783,120]
[380284616,1755632477859,-154.0,0.00034089,120]
[380284617,1755632477946,-154.0,0.00034089,120]
[380284618,1755632478033,-154.0,0.00034089,120]
[380284619,1755632478121,-154.0,0.00034089,120]
[380284620,1755632478209,-154.0,0.00034089,120]
[380284621,1755632478302,-200.0,0.00034277,120]
[380284622,1755632478396,-1831.0,0.00034921,120]
[380284623,1755632478505,-200.0,0.00039999,120]
[380284624,1755632478603,-200.0,0.00039999,120]
[380284625,1755632478695,-200.0,0.00039999,120]
[380284626,1755632478786,-200.0,0.00039999,120]
[380284627,1755632478876,-200.0,0.00039999,120]
[380284628,1755632478970,-151.0,0.00039999,120]
[380284629,1755632479063,-200.0,0.00039999,120]
[380284630,1755632479156,-151.0,0.00039999,120]
[380284631,1755632479246,-200.0,0.00039999,120]
[380284632,1755632479336,-151.0,0.00039999,120]
[380284633,1755632479427,-200.0,0.00039999,120]
[380284634,1755632479514,-200.0,0.00039999,120]
[380284635,1755632479605,-151.0,0.00039999,120]
[380284636,1755632479696,-500.0,0.00039999,120]
[380284637,1755632479786,-248.16854133,0.00039999,120]
[380284638,1755632479876,-500.0,0.00039999,120]
[380284639,1755632479962,-151.0,0.00039999,120]
[380284640,1755632480051,-500.0,0.00039999,120]
[380284641,1755632480142,-500.0,0.00039999,120]
[380284642,1755632480233,-500.0,0.00039999,120]
[380284643,1755632480323,-500.0,0.00039999,120]
[380284644,1755632480413,-500.0,0.00039999,120]
[380284645,1755632480503,-500.0,0.00039999,120]
[380284646,1755632480595,-500.0,0.00039999,120]
[380284647,1755632480686,-286543.367414,0.0004,120]
[380284648,1755632480776,-515.0,0.0004,120]
[380284649,1755632480866,-585.62,0.0004,120]
[380284650,1755632480949,-192.7,0.0004,120]
[380284651,1755632481033,-634.3,0.0004,120]
[380284652,1755632481119,-181.46,0.0004,120]
[380284653,1755632481215,-603.83,0.0004,120]
[380284654,1755632481310,-200.16,0.0004,120]
[380284655,1755632481401,-12500.0,0.0004,120]
[380284656,1755632481491,-2919.31,0.0004,120]
[380284657,1755632481580,-2000.0,0.0004,120]
[380284658,1755632481671,-7231.1,0.0004,120]
[380284659,1755632481764,-274.051,0.0004,120]
[380284660,1755632481857,-2104.4602,0.0004,120]
[380284661,1755632481946,-407.226282,0.0004003,120]
[380284662,1755632482035,-1745.23,0.00040078,120]
[380284663,1755632482426,-4994.9,0.00040125,120]
[380284664,1755632482518,-1500.0,0.00040137,120]
[380284665,1755632482606,-157.0,0.00040164,120]
[380284666,1755632482694,-1745.23,0.00040178,120]
[380284667,1755632482784,-1745.23,0.00040278,120]
[380284668,1755632482870,-1745.23,0.00040378,120]
[380284669,1755632482957,-1745.23,0.00040478,120]
[380284670,1755632483047,-1087.8086238,0.000405,120]
[380284671,1755632483135,-1750.0,0.000405,120]
[380284672,1755632483227,-8000.0,0.000405,120]
[380284673,1755632483319,-585.62,0.00040547,120]
[380284674,1755632483406,-1000.92524641,0.00040548,120]
[380284675,1755632483496,-1745.23,0.00040578,120]
[380284676,1755632483584,-1745.23,0.00040678,120]
[380284677,1755632483672,-152.0,0.000407,120]
[380284678,1755632483760,-163.0,0.000407,120]
[380284679,1755632483848,-10266.60195628,0.00040734,120]
[380284680,1755632483936,-1745.23,0.00040778,120]
[380284681,1755632484023,-3732.24997217,0.000408,90]
[380284682,1755632484113,-1745.23,0.00040878,120]
[380284683,1755632484206,-702.0,0.0004088,120]
[380284684,1755632484304,-1745.23,0.00040978,120]
[380284685,1755632484396,-33294.30362328,0.00040999,120]
[380284686,1755632484486,-553.007921,0.00041,120]
[380284687,1755632484574,-1102.56449413,0.00041,120]
[380284688,1755632484664,-2584.17495628,0.00041,120]
[380284689,1755632484755,-10000.0,0.00041,120]
[380284690,1755632484846,-10000.0,0.00041,120]
[380284691,1755632484937,-2000.0,0.00041,120]
[380284692,1755632485043,-250.0,0.00041,120]
[380284693,1755632485135,-2685.83,0.00041,120]
[380284694,1755632485228,-2000.0,0.00041,60]
[380284695,1755632485320,-1000.0,0.00041,60]
[380284696,1755632485410,-527.49,0.00041,60]
[380284697,1755632485501,-10000.0,0.00041,120]
[380284698,1755632485595,-64908.86864562,0.00041,120]
[380284699,1755632485698,-500.0,0.00041,120]
[380284700,1755632485811,-13268.0,0.00041,120]
[380284701,1755632485901,-4999.8,0.00041,120]
[380284702,1755632485990,-509.0,0.0004104,90]
[380284703,1755632486080,-509.0,0.0004104,90]
[380284704,1755632486175,-1746.14315235,0.00041078,120]
[380284705,1755632486270,-585.62,0.00041095,120]
[380284706,1755632486363,-1781.4,0.00041095,120]
[380284707,1755632486454,-552.06,0.00041095,120]
[380284708,1755632486547,-552.06,0.00041095,120]
[380284709,1755632486637,-552.06,0.00041095,120]
[380284710,1755632486726,-552.06,0.00041095,120]
[380284711,1755632486813,-552.06,0.00041095,120]
[380284712,1755632486902,-552.06,0.00041095,120]
[380284713,1755632486990,-552.06,0.00041095,120]
[380284714,1755632487086,-552.06,0.00041095,120]
[380284715,1755632487180,-552.06,0.00041095,120]
[380284716,1755632487270,-552.06,0.00041095,120]
[380284717,1755632487359,-552.06,0.00041095,120]
[380284718,1755632487449,-552.06,0.00041095,120]
[380284719,1755632487545,-552.06,0.00041095,120]
[380284720,1755632487634,-552.06,0.00041095,120]
[380284721,1755632487724,-552.06,0.00041095,120]
[380284722,1755632487812,-552.06,0.00041095,120]
[380284723,1755632487898,-552.06,0.00041095,120]
[380284724,1755632487988,-552.06,0.00041095,120]
[380284725,1755632488078,-552.06,0.00041095,120]
[380284726,1755632488170,-552.06,0.00041095,120]
[380284727,1755632488259,-552.06,0.00041095,120]
[380284728,1755632488352,-552.06,0.00041095,120]
[380284729,1755632488442,-552.06,0.00041095,120]
[380284730,1755632488535,-552.2,0.00041095,120]
[380284731,1755632488626,-600.0,0.00041096,60]
[380284732,1755632488717,-200.0,0.00041096,60]
[380284733,1755632488808,-600.0,0.00041096,60]
[380284734,1755632488895,-207.4,0.00041096,60]
[380284735,1755632488985,-600.0,0.00041096,60]
[380284736,1755632489072,-215.0738,0.00041096,60]
[380284737,1755632489162,-223.0315306,0.00041096,60]
[380284738,1755632489253,-600.0,0.00041096,60]
[380284739,1755632489344,-600.0,0.00041096,60]
[380284740,1755632489451,-600.0,0.00041096,60]
[380284741,1755632489543,-600.0,0.00041096,60]
[380284742,1755632489632,-231.28369723,0.00041096,60]
[380284743,1755632489724,-600.0,0.00041096,60]
[380284744,1755632489814,-600.0,0.00041096,60]
[380284745,1755632489904,-160.0,0.00041096,60]
[380284746,1755632489995,-239.84119403,0.00041096,60]
[380284747,1755632490085,-600.0,0.00041096,60]
[380284748,1755632490177,-600.0,0.00041096,60]
[380284749,1755632490269,-160.0,0.00041096,60]
[380284750,1755632490368,-248.71531821,0.00041096,60]
[380284751,1755632490460,-600.0,0.00041096,60]
[380284752,1755632490552,-600.0,0.00041096,60]
[380284753,1755632490641,-160.0,0.00041096,60]
[380284754,1755632490734,-600.0,0.00041096,60]
[380284755,1755632490831,-257.91778498,0.00041096,60]
[380284756,1755632490919,-600.0,0.00041096,60]
[380284757,1755632491015,-160.0,0.00041096,60]
[380284758,1755632491109,-600.0,0.00041096,60]
[380284759,1755632491206,-267.46074303,0.00041096,60]
[380284760,1755632491312,-600.0,0.00041096,60]
[380284761,1755632491405,-160.0,0.00041096,60]
[380284762,1755632491496,-600.0,0.00041096,60]
[380284763,1755632491586,-277.35679052,0.00041096,60]
[380284764,1755632491674,-160.0,0.00041096,60]
[380284765,1755632491761,-600.0,0.00041096,60]
[380284766,1755632491851,-287.61899177,0.00041096,60]
[380284767,1755632491939,-160.0,0.00041096,60]
[380284768,1755632492028,-600.0,0.00041096,60]
[380284769,1755632492117,-298.26089446,0.00041096,60]
[380284770,1755632492204,-160.0,0.00041096,60]
[380284771,1755632492296,-600.0,0.00041096,60]
[380284772,1755632492386,-309.29654756,0.00041096,60]
[380284773,1755632492477,-600.0,0.00041096,60]
[380284774,1755632492565,-160.0,0.00041096,60]
[380284775,1755632492652,-600.0,0.00041096,60]
[380284776,1755632492739,-320.74051982,0.00041096,60]
[380284777,1755632492828,-160.0,0.00041096,60]
[380284778,1755632493361,-600.0,0.00041096,60]
[380284779,1755632493454,-332.60791905,0.00041096,60]
[380284780,1755632493542,-600.0,0.00041096,60]
[380284781,1755632493629,-160.0,0.00041096,60]
[380284782,1755632493716,-600.0,0.00041096,60]
[380284783,1755632493807,-344.91441206,0.00041096,60]
[380284784,1755632493895,-600.0,0.00041096,60]
[380284785,1755632493983,-160.0,0.00041096,60]
[380284786,1755632494076,-600.0,0.00041096,60]
[380284787,1755632494166,-357.6762453,0.00041096,60]
[380284788,1755632494255,-600.0,0.00041096,60]
[380284789,1755632494355,-370.91026638,0.00041096,60]
[380284790,1755632494449,-600.0,0.00041096,60]
[380284791,1755632494546,-600.0,0.00041096,60]
[380284792,1755632494645,-384.63394623,0.00041096,60]
[380284793,1755632494743,-600.0,0.00041096,60]
[380284794,1755632494839,-600.0,0.00041096,60]
[380284795,1755632494938,-398.86540225,0.00041096,60]
[380284796,1755632495038,-600.0,0.00041096,60]
[380284797,1755632495137,-600.0,0.00041096,60]
[380284798,1755632495235,-600.0,0.00041096,60]
[380284799,1755632495334,-600.0,0.00041096,60]
[380284800,1755632495435,-600.0,0.00041096,60]
[380284801,1755632495537,-600.0,0.00041096,60]
[380284802,1755632495637,-160.0,0.00041096,60]
[380284803,1755632495727,-160.0,0.00041096,60]
[380284804,1755632495824,-160.0,0.00041096,60]
[380284805,1755632495937,-160.0,0.00041096,60]
[380284806,1755632496042,-160.0,0.00041096,60]
[380284807,1755632496140,-160.0,0.00041096,60]
[380284808,1755632496236,-160.0,0.00041096,60]
[380284809,1755632496325,-160.0,0.00041096,60]
[380284810,1755632496415,-1000.0,0.00041096,60]
[380284811,1755632496503,-300.0,0.00041096,60]
[380284812,1755632496591,-151.0,0.00041096,60]
[380284813,1755632496678,-151.0,0.00041096,60]
[380284814,1755632496769,-3000.0,0.00041096,60]
[380284815,1755632496859,-1000.0,0.00041096,60]
[380284816,1755632496951,-151.0,0.00041096,60]
[380284817,1755632497037,-151.0,0.00041096,60]
[380284818,1755632497123,-3000.0,0.00041096,60]
[380284819,1755632497216,-1000.0,0.00041096,60]
[380284820,1755632497313,-151.0,0.00041096,60]
[380284821,1755632497399,-151.0,0.00041096,60]
[380284822,1755632497488,-3000.0,0.00041096,60]
[380284823,1755632497584,-1000.0,0.00041096,60]
[380284824,1755632497678,-151.0,0.00041096,60]
[380284825,1755632497764,-3000.0,0.00041096,60]
[380284826,1755632497849,-1000.0,0.00041096,60]
[380284827,1755632497937,-3000.0,0.00041096,60]
[380284828,1755632498021,-1000.0,0.00041096,60]
[380284829,1755632498109,-151.0,0.00041096,60]
[380284830,1755632498196,-151.0,0.00041096,60]
[380284831,1755632498283,-3000.0,0.00041096,60]
[380284832,1755632498373,-151.0,0.00041096,60]
[380284833,1755632498468,-151.0,0.00041096,60]
[380284834,1755632498557,-151.0,0.00041096,60]
[380284835,1755632498641,-151.0,0.00041096,60]
[380284836,1755632498726,-151.0,0.00041096,60]
[380284837,1755632498813,-151.0,0.00041096,60]
[380284838,1755632498899,-151.0,0.00041096,60]
[380284839,1755632498986,-500.0,0.00041096,60]
[380284840,1755632499070,-300.0,0.00041096,60]
[380284841,1755632499156,-151.0,0.00041096,60]
[380284842,1755632499249,-151.0,0.00041096,60]
[380284843,1755632499338,-151.0,0.00041096,60]
[380284844,1755632499427,-500.0,0.00041096,60]
[380284845,1755632499513,-404.81787285,0.00041096,60]
[380284846,1755632499599,-151.0,0.00041096,60]
[380284847,1755632499681,-151.0,0.00041096,60]
[380284848,1755632499763,-153.29103845,0.00041096,60]
[380284849,1755632499847,-500.0,0.00041096,60]
[380284850,1755632499930,-151.0,0.00041096,60]
[380284851,1755632500014,-500.0,0.00041096,60]
[380284852,1755632500102,-151.0,0.00041096,60]
[380284853,1755632500189,-500.0,0.00041096,60]
[380284854,1755632500279,-151.0,0.00041096,60]
[380284855,1755632500366,-500.0,0.00041096,60]
[380284856,1755632500453,-6688.0,0.00041096,60]
[380284857,1755632500541,-6935.456,0.00041096,60]
[380284858,1755632500627,-151.0,0.00041096,60]
[380284859,1755632500712,-7192.067872,0.00041096,60]
[380284860,1755632500796,-7458.17438326,0.00041096,60]
[380284861,1755632500881,-7734.12683544,0.00041096,60]
[380284862,1755632500965,-8020.28952836,0.00041096,60]
[380284863,1755632501049,-8317.04024091,0.00041096,60]
[380284864,1755632501135,-151.0,0.00041096,60]
[380284865,1755632501221,-8624.77072982,0.00041096,60]
[380284866,1755632501313,-281.5055913,0.00041096,60]
[380284867,1755632501401,-8943.88724682,0.00041096,60]
[380284868,1755632501486,-9274.81107495,0.00041096,60]
[380284869,1755632501572,-9617.97908473,0.00041096,60]
[380284870,1755632501655,-8913.62735992,0.00041096,60]
[380284871,1755632501737,-500.0,0.00041096,60]
[380284872,1755632501820,-520.0,0.00041096,60]
[380284873,1755632501902,-500.0,0.00041096,60]
[380284874,1755632501984,-500.0,0.00041096,60]
[380284875,1755632502069,-539.24,0.00041096,60]
[380284876,1755632502153,-151.0,0.00041096,60]
[380284877,1755632502238,-500.0,0.00041096,60]
[380284878,1755632502324,-500.0,0.00041096,60]
[380284879,1755632502410,-559.19188,0.00041096,60]
[380284880,1755632502493,-151.0,0.00041096,60]
[380284881,1755632502579,-500.0,0.00041096,60]
[380284882,1755632502661,-579.88197956,0.00041096,60]
[380284883,1755632502745,-151.0,0.00041096,60]
[380284884,1755632502828,-500.0,0.00041096,60]
[380284885,1755632502913,-4240.84151275,0.00041096,60]
[380284886,1755632502999,-601.3376128,0.00041096,60]
[380284887,1755632503084,-151.0,0.00041096,60]
[380284888,1755632503169,-500.0,0.00041096,60]
[380284889,1755632503253,-623.58710448,0.00041096,60]
[380284890,1755632503339,-151.0,0.00041096,60]
[380284891,1755632503424,-721.12765535,0.00041096,60]
[380284892,1755632503514,-151.0,0.00041096,60]
[380284893,1755632503860,-151.0,0.00041096,60]
[380284894,1755632503946,-151.0,0.00041096,60]
[380284895,1755632504031,-2000.0,0.00041096,120]
[380284896,1755632504118,-2000.0,0.00041096,120]
[380284897,1755632504206,-2000.0,0.00041096,120]
[380284898,1755632504301,-2000.0,0.00041096,120]
[380284899,1755632504392,-2000.0,0.00041096,120]
[380284900,1755632504481,-2000.0,0.00041096,120]
[380284901,1755632504569,-2000.0,0.00041096,120]
[380284902,1755632504656,-2000.0,0.00041096,120]
[380284903,1755632504741,-2000.0,0.00041096,120]
[380284904,1755632504829,-2000.0,0.00041096,120]